[Event "*** Titled Tuesday Blitz"]
[Site "Chess.com"]
[Date "2020.12.29"]
[Round "3"]
[White "The_Chess_Coach"]
[Black "saikrishnaReturns"]
[Result "0-1"]
[WhiteElo "2292"]
[BlackElo "2636"]
[TimeControl "180+1"]
[EndTime "10:29:11 PST"]
[Termination "saikrishnaReturns won on time"]

1. d4 {[%clk 0:02:15.1]} 1... g6 {[%clk 0:03:00.9]} 2. c4 {[%clk 0:02:14.5]}
2... Bg7 {[%clk 0:03:01.2]} 3. Nf3 {[%clk 0:02:12.4]} 3... Nf6 {[%clk
0:03:01.8]} 4. Nc3 {[%clk 0:02:12.4]} 4... O-O {[%clk 0:03:02.7]} 5. e4 {[%clk
0:02:13.2]} 5... d6 {[%clk 0:03:02.9]} 6. Be2 {[%clk 0:02:13.7]} 6... e5 {[%clk
0:03:03.2]} 7. Be3 {[%clk 0:02:14.2]} 7... Nc6 {[%clk 0:03:01.8]} 8. d5 {[%clk
0:02:14.3]} 8... Ne7 {[%clk 0:03:02]} 9. Nd2 {[%clk 0:02:15.2]} 9... Ne8 {[%clk
0:03:00.7]} 10. Qc2 {[%clk 0:02:15.5]} 10... f5 {[%clk 0:03:00.8]} 11. f3 {[%clk
0:02:16]} 11... f4 {[%clk 0:03:00.6]} 12. Bf2 {[%clk 0:02:15.8]} 12... g5 {[%clk
0:03:00.9]} 13. c5 {[%clk 0:02:15.6]} 13... h5 {[%clk 0:02:48.8]} 14. Nc4 {[%clk
0:02:14.8]} 14... g4 {[%clk 0:02:46.1]} 15. cxd6 {[%clk 0:02:12.4]} 15... cxd6
{[%clk 0:02:46.3]} 16. Nb5 {[%clk 0:02:11.4]} 16... b6 {[%clk 0:02:45.4]} 17.
O-O-O {[%clk 0:02:07.4]} 17... Ba6 {[%clk 0:02:42.2]} 18. a4 {[%clk 0:02:01.2]}
18... gxf3 {[%clk 0:02:33.4]} 19. gxf3 {[%clk 0:01:59.6]} 19... Rc8 {[%clk
0:02:27.7]} 20. Kb1 {[%clk 0:01:57.8]} 20... Qd7 {[%clk 0:02:26.6]} 21. Qb3
{[%clk 0:01:57.2]} 21... Bxb5 {[%clk 0:02:22]} 22. axb5 {[%clk 0:01:55.1]} 22...
Nc7 {[%clk 0:02:19.5]} 23. Na3 {[%clk 0:01:49]} 23... Bf6 {[%clk 0:02:01]} 24.
Rc1 {[%clk 0:01:40.8]} 24... Kf7 {[%clk 0:01:57]} 25. Rhg1 {[%clk 0:01:36.5]}
25... Rg8 {[%clk 0:01:56.8]} 26. Rxg8 {[%clk 0:01:35.5]} 26... Rxg8 {[%clk
0:01:56.7]} 27. Bf1 {[%clk 0:01:35.9]} 27... h4 {[%clk 0:01:53.2]} 28. Rc6
{[%clk 0:01:13]} 28... Kf8 {[%clk 0:01:45.6]} 29. Rc1 {[%clk 0:01:08.7]} 29...
Ne8 {[%clk 0:01:42.4]} 30. Nc2 {[%clk 0:01:04.2]} 30... h3 {[%clk 0:01:39.9]}
31. Nb4 {[%clk 0:01:03.6]} 31... Ng6 {[%clk 0:01:38.6]} 32. Nc6 {[%clk
0:00:51.4]} 32... Bh4 {[%clk 0:01:36.6]} 33. Bxh4 {[%clk 0:00:45.2]} 33... Nxh4
{[%clk 0:01:37.5]} 34. Qa3 {[%clk 0:00:33.8]} 34... Nf6 {[%clk 0:01:20.9]} 35.
Nxe5 {[%clk 0:00:31.5]} 35... Qe7 {[%clk 0:01:10.5]} 36. Rc8+ {[%clk 0:00:24.8]}
36... Kg7 {[%clk 0:01:09.3]} 37. Rxg8+ {[%clk 0:00:24.5]} 37... Nxg8 {[%clk
0:01:04.5]} 38. Nc6 {[%clk 0:00:25.4]} 38... Qg5 {[%clk 0:01:04.5]} 39. Qxa7+
{[%clk 0:00:24.5]} 39... Kh6 {[%clk 0:01:02.7]} 40. Qxb6 {[%clk 0:00:24.6]}
40... Nxf3 {[%clk 0:01:01.7]} 41. Qf2 {[%clk 0:00:20.2]} 41... Ne5 {[%clk
0:00:49.2]} 42. Nd4 {[%clk 0:00:19.8]} 42... Nf6 {[%clk 0:00:47.7]} 43. Ne6
{[%clk 0:00:19.1]} 43... Nxe4 {[%clk 0:00:42.6]} 44. Qxf4 {[%clk 0:00:19.1]}
44... Qxf4 {[%clk 0:00:36.9]} 45. Nxf4 {[%clk 0:00:20]} 45... Nd2+ {[%clk
0:00:37.4]} 46. Kc2 {[%clk 0:00:18.8]} 46... Nxf1 {[%clk 0:00:38.3]} 47. b6
{[%clk 0:00:15.1]} 47... Nxh2 {[%clk 0:00:38.2]} 48. b7 {[%clk 0:00:13.4]} 48...
Nd7 {[%clk 0:00:37.5]} 49. Nxh3 {[%clk 0:00:13]} 49... Ng4 {[%clk 0:00:36]} 50.
Kd3 {[%clk 0:00:07.9]} 50... Kg6 {[%clk 0:00:34.6]} 51. Kd4 {[%clk 0:00:07.1]}
51... Kf5 {[%clk 0:00:33.8]} 52. Ng1 {[%clk 0:00:06.7]} 52... Nge5 {[%clk
0:00:29.7]} 53. Ne2 {[%clk 0:00:06.5]} 53... Nb8 {[%clk 0:00:29.4]} 54. Nc3
{[%clk 0:00:06.3]} 54... Kf6 {[%clk 0:00:25.2]} 55. b4 {[%clk 0:00:02.6]} 55...
Ke7 {[%clk 0:00:25]} 56. b5 {[%clk 0:00:02.8]} 56... Kd7 {[%clk 0:00:23]} 57. b6
{[%clk 0:00:03]} 57... Ke7 {[%clk 0:00:22.2]} 58. Ne4 {[%clk 0:00:03]} 58...
Ned7 {[%clk 0:00:21.8]} 0-1

[Event "*** Titled Tuesday Blitz"]
[Site "Chess.com"]
[Date "2020.12.29"]
[Round "3"]
[White "Chernov_Alexander_A"]
[Black "NiranjanNavalgund"]
[Result "0-1"]
[WhiteElo "2308"]
[BlackElo "2484"]
[TimeControl "180+1"]
[EndTime "10:29:13 PST"]
[Termination "NiranjanNavalgund won on time"]

1. d4 {[%clk 0:02:58.2]} 1... Nf6 {[%clk 0:02:59.6]} 2. Nf3 {[%clk 0:02:57.1]}
2... b5 {[%clk 0:02:58.2]} 3. Bf4 {[%clk 0:02:54.9]} 3... a6 {[%clk 0:02:57.4]}
4. e3 {[%clk 0:02:54.8]} 4... Bb7 {[%clk 0:02:57.3]} 5. Be2 {[%clk 0:02:53.4]}
5... e6 {[%clk 0:02:56.9]} 6. O-O {[%clk 0:02:53]} 6... d6 {[%clk 0:02:55.1]} 7.
a4 {[%clk 0:02:52.2]} 7... b4 {[%clk 0:02:55.1]} 8. c4 {[%clk 0:02:51.9]} 8...
a5 {[%clk 0:02:53.3]} 9. Nbd2 {[%clk 0:02:48.9]} 9... Nbd7 {[%clk 0:02:53.3]}
10. Bd3 {[%clk 0:02:42]} 10... c5 {[%clk 0:02:38.6]} 11. h3 {[%clk 0:02:35.1]}
11... Be7 {[%clk 0:02:38.4]} 12. Bh2 {[%clk 0:02:32.3]} 12... O-O {[%clk
0:02:38.1]} 13. Qc2 {[%clk 0:02:20.7]} 13... Rc8 {[%clk 0:02:28.2]} 14. Rad1
{[%clk 0:02:15.7]} 14... Re8 {[%clk 0:02:09.8]} 15. d5 {[%clk 0:02:10.5]} 15...
exd5 {[%clk 0:02:07]} 16. cxd5 {[%clk 0:02:09.5]} 16... Bxd5 {[%clk 0:02:05.6]}
17. Nc4 {[%clk 0:02:06.2]} 17... Bxf3 {[%clk 0:02:01.1]} 18. gxf3 {[%clk
0:02:04.8]} 18... d5 {[%clk 0:02:01.3]} 19. Ne5 {[%clk 0:01:55.7]} 19... Nxe5
{[%clk 0:01:42.1]} 20. Bxe5 {[%clk 0:01:53.5]} 20... h6 {[%clk 0:01:42.5]} 21.
Bb5 {[%clk 0:01:52]} 21... Rf8 {[%clk 0:01:38.9]} 22. Kh1 {[%clk 0:01:51.8]}
22... c4 {[%clk 0:01:32.8]} 23. Rg1 {[%clk 0:01:50.9]} 23... Qb6 {[%clk
0:01:29.7]} 24. Qf5 {[%clk 0:01:47.5]} 24... Qe6 {[%clk 0:01:17]} 25. Qf4 {[%clk
0:01:28.5]} 25... Qxh3+ {[%clk 0:01:15.5]} 26. Qh2 {[%clk 0:01:27.2]} 26...
Qxf3+ {[%clk 0:01:15]} 27. Qg2 {[%clk 0:01:24.5]} 27... Qxg2+ {[%clk 0:01:06.2]}
28. Rxg2 {[%clk 0:01:23.6]} 28... Kh8 {[%clk 0:01:01]} 29. Rdg1 {[%clk
0:01:00.9]} 29... Rg8 {[%clk 0:00:55.4]} 30. f4 {[%clk 0:00:50.2]} 30... Kh7
{[%clk 0:00:40.2]} 31. Bd7 {[%clk 0:00:45.8]} 31... Rcd8 {[%clk 0:00:37.4]} 32.
Bf5+ {[%clk 0:00:44.4]} 32... Kh8 {[%clk 0:00:37.4]} 33. Rh2 {[%clk 0:00:28.5]}
33... Rb8 {[%clk 0:00:26.3]} 34. Rg3 {[%clk 0:00:25]} 34... Rb6 {[%clk
0:00:22.9]} 35. Rgh3 {[%clk 0:00:23.4]} 35... Bd8 {[%clk 0:00:15.5]} 36. Rg3
{[%clk 0:00:17.8]} 36... c3 {[%clk 0:00:15.2]} 37. bxc3 {[%clk 0:00:16.7]} 37...
bxc3 {[%clk 0:00:15.7]} 38. Rc2 {[%clk 0:00:16.5]} 38... Rb1+ {[%clk 0:00:14.5]}
39. Kg2 {[%clk 0:00:14.3]} 39... Rb2 {[%clk 0:00:15.4]} 40. Rxb2 {[%clk
0:00:13.5]} 40... cxb2 {[%clk 0:00:16.3]} 41. Bxb2 {[%clk 0:00:13.5]} 41... Bb6
{[%clk 0:00:16.5]} 42. Kf3 {[%clk 0:00:11]} 42... Re8 {[%clk 0:00:16.2]} 43. Kf2
{[%clk 0:00:06.3]} 43... d4 {[%clk 0:00:15.1]} 44. exd4 {[%clk 0:00:05.2]} 44...
Nd5 {[%clk 0:00:14.5]} 45. Rf3 {[%clk 0:00:04.3]} 45... g6 {[%clk 0:00:13.2]}
46. Bd3 {[%clk 0:00:02.8]} 46... f5 {[%clk 0:00:13.4]} 47. Bb5 {[%clk
0:00:02.2]} 47... Re7 {[%clk 0:00:13.6]} 48. Kg3 {[%clk 0:00:01.8]} 48... Re4
{[%clk 0:00:13.6]} 49. Rb3 {[%clk 0:00:01.5]} 49... Rxf4 {[%clk 0:00:12.9]} 0-1

[Event "*** Titled Tuesday Blitz"]
[Site "Chess.com"]
[Date "2020.12.29"]
[Round "3"]
[White "maciek_92"]
[Black "Keks2017"]
[Result "0-1"]
[WhiteElo "2759"]
[BlackElo "2569"]
[TimeControl "180+1"]
[EndTime "10:29:14 PST"]
[Termination "Keks2017 won on time"]

1. e4 {[%clk 0:03:00.9]} 1... d6 {[%clk 0:02:59.9]} 2. d4 {[%clk 0:02:58.2]}
2... Nf6 {[%clk 0:02:59.9]} 3. Nc3 {[%clk 0:02:58.2]} 3... e5 {[%clk 0:02:59.1]}
4. dxe5 {[%clk 0:02:53.8]} 4... dxe5 {[%clk 0:02:58.5]} 5. Qxd8+ {[%clk
0:02:54.3]} 5... Kxd8 {[%clk 0:02:58.5]} 6. Bc4 {[%clk 0:02:54.9]} 6... Ke8
{[%clk 0:02:58.4]} 7. f3 {[%clk 0:02:52.6]} 7... c6 {[%clk 0:02:56.5]} 8. Be3
{[%clk 0:02:47.2]} 8... Nbd7 {[%clk 0:02:55.5]} 9. Nge2 {[%clk 0:02:46.3]} 9...
Bc5 {[%clk 0:02:54.9]} 10. Kf2 {[%clk 0:02:42.2]} 10... Bxe3+ {[%clk 0:02:53.8]}
11. Kxe3 {[%clk 0:02:43.1]} 11... Ke7 {[%clk 0:02:53.8]} 12. h4 {[%clk
0:02:38.5]} 12... Nb6 {[%clk 0:02:53.2]} 13. Bb3 {[%clk 0:02:34.8]} 13... Be6
{[%clk 0:02:52.6]} 14. g4 {[%clk 0:02:33.6]} 14... Nfd7 {[%clk 0:02:52.2]} 15.
Ng3 {[%clk 0:02:29]} 15... g6 {[%clk 0:02:51.4]} 16. h5 {[%clk 0:02:25.8]} 16...
Nc5 {[%clk 0:02:51]} 17. Rh2 {[%clk 0:02:06.7]} 17... a5 {[%clk 0:02:49.5]} 18.
Rah1 {[%clk 0:01:59.1]} 18... Rhd8 {[%clk 0:02:46.8]} 19. hxg6 {[%clk
0:01:56.1]} 19... hxg6 {[%clk 0:02:46]} 20. Rd2 {[%clk 0:01:35.8]} 20... Rxd2
{[%clk 0:02:37]} 21. Kxd2 {[%clk 0:01:36.7]} 21... a4 {[%clk 0:02:31.6]} 22.
Bxe6 {[%clk 0:01:36.7]} 22... Nxe6 {[%clk 0:02:31.5]} 23. Nce2 {[%clk
0:01:31.4]} 23... Nd7 {[%clk 0:02:13.3]} 24. Ke3 {[%clk 0:01:25]} 24... b5
{[%clk 0:02:12.8]} 25. a3 {[%clk 0:01:24.1]} 25... Nb6 {[%clk 0:02:11.9]} 26.
Kd2 {[%clk 0:01:21]} 26... Rd8+ {[%clk 0:02:05.1]} 27. Kc3 {[%clk 0:01:19.5]}
27... Nc4 {[%clk 0:02:00]} 28. b3 {[%clk 0:00:41.8]} 28... axb3 {[%clk
0:01:51.8]} 29. cxb3 {[%clk 0:00:42.7]} 29... Nd2 {[%clk 0:01:40.8]} 30. a4
{[%clk 0:00:32.4]} 30... Nxf3 {[%clk 0:01:29.6]} 31. a5 {[%clk 0:00:32.8]} 31...
c5 {[%clk 0:01:29.2]} 32. a6 {[%clk 0:00:29.5]} 32... Ra8 {[%clk 0:01:28.3]} 33.
Ra1 {[%clk 0:00:29]} 33... Ra7 {[%clk 0:01:25.6]} 34. b4 {[%clk 0:00:27.2]}
34... c4 {[%clk 0:01:22.5]} 35. Nf1 {[%clk 0:00:27.9]} 35... Nfg5 {[%clk
0:01:18.3]} 36. Neg3 {[%clk 0:00:26.9]} 36... Nc7 {[%clk 0:01:13.9]} 37. Ne3
{[%clk 0:00:27.5]} 37... Ke6 {[%clk 0:01:07.9]} 38. Nd5 {[%clk 0:00:14.8]} 38...
Nxd5+ {[%clk 0:01:03]} 39. exd5+ {[%clk 0:00:15]} 39... Kxd5 {[%clk 0:01:02.9]}
40. Nf1 {[%clk 0:00:02.9]} 40... Kc6 {[%clk 0:01:00.9]} 41. Ne3 {[%clk
0:00:02.7]} 41... Kb6 {[%clk 0:01:00.4]} 42. Nd5+ {[%clk 0:00:03]} 42... Kc6
{[%clk 0:00:58.1]} 43. Nf6 {[%clk 0:00:03.6]} 43... Ne6 {[%clk 0:00:46.3]} 44.
Ne4 {[%clk 0:00:03.2]} 44... f5 {[%clk 0:00:43]} 45. gxf5 {[%clk 0:00:03.2]}
45... gxf5 {[%clk 0:00:43]} 46. Nf6 {[%clk 0:00:03.8]} 46... Nc7 {[%clk
0:00:42.3]} 47. Re1 {[%clk 0:00:02.7]} 47... Nd5+ {[%clk 0:00:39.5]} 48. Nxd5
{[%clk 0:00:02.5]} 48... Kxd5 {[%clk 0:00:39.6]} 49. Rd1+ {[%clk 0:00:02.6]}
49... Ke6 {[%clk 0:00:39.7]} 50. Rh1 {[%clk 0:00:03]} 50... f4 {[%clk
0:00:38.6]} 51. Rh6+ {[%clk 0:00:03.6]} 51... Kf5 {[%clk 0:00:38.6]} 52. Rb6
{[%clk 0:00:04.5]} 52... e4 {[%clk 0:00:37.9]} 53. Rxb5+ {[%clk 0:00:04.5]}
53... Kg4 {[%clk 0:00:38.1]} 54. Rb6 {[%clk 0:00:04.5]} 54... e3 {[%clk
0:00:37.3]} 55. b5 {[%clk 0:00:04.2]} 55... e2 {[%clk 0:00:36.2]} 56. Kd2 {[%clk
0:00:03.1]} 56... f3 {[%clk 0:00:36.3]} 57. Ke1 {[%clk 0:00:02.7]} 57... Rd7
{[%clk 0:00:33.5]} 58. Rg6+ {[%clk 0:00:02.4]} 58... Kf5 {[%clk 0:00:33]} 0-1

[Event "*** Titled Tuesday Blitz"]
[Site "Chess.com"]
[Date "2020.12.29"]
[Round "3"]
[White "elohunter1999"]
[Black "FontVella8"]
[Result "0-1"]
[WhiteElo "2685"]
[BlackElo "2509"]
[TimeControl "180+1"]
[EndTime "10:29:14 PST"]
[Termination "FontVella8 won by resignation"]

1. d4 {[%clk 0:03:00.9]} 1... d5 {[%clk 0:02:53.5]} 2. c4 {[%clk 0:02:59.2]}
2... c6 {[%clk 0:02:53.5]} 3. Nf3 {[%clk 0:02:58.4]} 3... Nf6 {[%clk 0:02:51.5]}
4. Nc3 {[%clk 0:02:57.1]} 4... e6 {[%clk 0:02:51.1]} 5. e3 {[%clk 0:02:55.6]}
5... Nbd7 {[%clk 0:02:50.2]} 6. Qc2 {[%clk 0:02:54.3]} 6... Bd6 {[%clk
0:02:50.3]} 7. Bd3 {[%clk 0:02:54]} 7... dxc4 {[%clk 0:02:46.6]} 8. Bxc4 {[%clk
0:02:53.6]} 8... b5 {[%clk 0:02:46.7]} 9. Be2 {[%clk 0:02:53.5]} 9... O-O {[%clk
0:02:45]} 10. O-O {[%clk 0:02:52.6]} 10... Bb7 {[%clk 0:02:45.3]} 11. e4 {[%clk
0:02:50.8]} 11... e5 {[%clk 0:02:44.6]} 12. Rd1 {[%clk 0:02:49.5]} 12... Qe7
{[%clk 0:02:42.6]} 13. dxe5 {[%clk 0:02:40.1]} 13... Nxe5 {[%clk 0:02:42.1]} 14.
Nd4 {[%clk 0:02:39.7]} 14... g6 {[%clk 0:02:36.6]} 15. Bg5 {[%clk 0:02:29.2]}
15... Rad8 {[%clk 0:02:24.6]} 16. f4 {[%clk 0:02:18.3]} 16... Bc5 {[%clk
0:02:24.2]} 17. fxe5 {[%clk 0:01:26.3]} 17... Rxd4 {[%clk 0:02:23.5]} 18. Rxd4
{[%clk 0:01:22.9]} 18... Bxd4+ {[%clk 0:02:23.3]} 19. Kh1 {[%clk 0:01:23.4]}
19... Qxe5 {[%clk 0:02:21.6]} 20. Bh6 {[%clk 0:01:14.4]} 20... Re8 {[%clk
0:02:16.1]} 21. Bf3 {[%clk 0:01:09.7]} 21... b4 {[%clk 0:02:15.9]} 22. Ne2
{[%clk 0:01:07.8]} 22... c5 {[%clk 0:02:15.4]} 23. Nxd4 {[%clk 0:01:04.2]} 23...
cxd4 {[%clk 0:02:15.3]} 24. Re1 {[%clk 0:00:42.9]} 24... Nxe4 {[%clk 0:02:12.8]}
25. Rf1 {[%clk 0:00:19.6]} 25... Ba6 {[%clk 0:01:09.3]} 26. Rc1 {[%clk
0:00:16.6]} 26... d3 {[%clk 0:00:31.9]} 27. Qc6 {[%clk 0:00:14.7]} 27... d2
{[%clk 0:00:19.6]} 28. Bxd2 {[%clk 0:00:08.8]} 28... Nxd2 {[%clk 0:00:16.6]} 29.
h3 {[%clk 0:00:08]} 29... Nxf3 {[%clk 0:00:15.6]} 30. Qxf3 {[%clk 0:00:07.7]}
30... Be2 {[%clk 0:00:14.3]} 31. Qf2 {[%clk 0:00:07.3]} 31... a5 {[%clk
0:00:13.5]} 32. Re1 {[%clk 0:00:07.1]} 32... Qxb2 {[%clk 0:00:13.2]} 33. h4
{[%clk 0:00:06.2]} 33... Re6 {[%clk 0:00:12.8]} 34. h5 {[%clk 0:00:06.3]} 34...
Qd2 {[%clk 0:00:04.7]} 35. Kg1 {[%clk 0:00:04.6]} 35... Kg7 {[%clk 0:00:05.1]}
36. h6+ {[%clk 0:00:03.7]} 36... Qxh6 {[%clk 0:00:05.4]} 37. Rxe2 {[%clk
0:00:03.5]} 37... Qc1+ {[%clk 0:00:05.4]} 38. Kh2 {[%clk 0:00:03.4]} 38... Rxe2
{[%clk 0:00:05.8]} 39. Qxe2 {[%clk 0:00:03.2]} 39... Qf4+ {[%clk 0:00:06.3]} 40.
Kg1 {[%clk 0:00:02.6]} 40... h5 {[%clk 0:00:06.5]} 41. Qb2+ {[%clk 0:00:02.7]}
41... Qf6 {[%clk 0:00:06.7]} 42. Qe2 {[%clk 0:00:03.3]} 42... Qd4+ {[%clk
0:00:06.9]} 43. Kh1 {[%clk 0:00:02.9]} 43... a4 {[%clk 0:00:07.5]} 44. Qb5
{[%clk 0:00:02.9]} 44... b3 {[%clk 0:00:06.4]} 45. axb3 {[%clk 0:00:02.7]} 45...
a3 {[%clk 0:00:07.1]} 46. Qa5 {[%clk 0:00:02.7]} 46... Qa1+ {[%clk 0:00:06.8]}
47. Kh2 {[%clk 0:00:02.1]} 47... Qb2 {[%clk 0:00:07.4]} 48. b4 {[%clk
0:00:01.5]} 48... a2 {[%clk 0:00:07.8]} 49. b5 {[%clk 0:00:01.8]} 49... a1=Q
{[%clk 0:00:07.8]} 50. Qc7 {[%clk 0:00:02.7]} 50... Qe5+ {[%clk 0:00:07.7]} 0-1

[Event "*** Titled Tuesday Blitz"]
[Site "Chess.com"]
[Date "2020.12.29"]
[Round "3"]
[White "pavel_skatchkov"]
[Black "Gabrielian_Artur"]
[Result "0-1"]
[WhiteElo "2558"]
[BlackElo "2794"]
[TimeControl "180+1"]
[EndTime "10:29:16 PST"]
[Termination "Gabrielian_Artur won by resignation"]

1. d4 {[%clk 0:03:00.9]} 1... Nf6 {[%clk 0:02:59.7]} 2. Nf3 {[%clk 0:03:01.8]}
2... g6 {[%clk 0:02:58.4]} 3. g3 {[%clk 0:03:02]} 3... Bg7 {[%clk 0:02:58.6]} 4.
Bg2 {[%clk 0:03:02.4]} 4... O-O {[%clk 0:02:59.2]} 5. O-O {[%clk 0:03:02.9]}
5... d6 {[%clk 0:02:59.7]} 6. c4 {[%clk 0:03:03.3]} 6... Nbd7 {[%clk 0:03:00]}
7. Nc3 {[%clk 0:03:03.7]} 7... e5 {[%clk 0:03:00.4]} 8. e4 {[%clk 0:03:04.2]}
8... exd4 {[%clk 0:03:00.9]} 9. Nxd4 {[%clk 0:03:05.1]} 9... Re8 {[%clk
0:03:01.3]} 10. Re1 {[%clk 0:03:05.1]} 10... Nc5 {[%clk 0:03:01.3]} 11. h3
{[%clk 0:03:02.9]} 11... Bd7 {[%clk 0:03:01.3]} 12. Bg5 {[%clk 0:02:47]} 12...
h6 {[%clk 0:03:00.9]} 13. Bf4 {[%clk 0:02:42.4]} 13... g5 {[%clk 0:02:56.9]} 14.
Bd2 {[%clk 0:02:23.1]} 14... Nfxe4 {[%clk 0:02:46.5]} 15. Nxe4 {[%clk
0:02:22.2]} 15... Nxe4 {[%clk 0:02:32.6]} 16. Bxe4 {[%clk 0:02:04.9]} 16... Bxd4
{[%clk 0:02:31.3]} 17. Bxb7 {[%clk 0:02:02.2]} 17... Rb8 {[%clk 0:02:29.1]} 18.
Qf3 {[%clk 0:02:01.6]} 18... Qf6 {[%clk 0:02:19.6]} 19. Rxe8+ {[%clk 0:01:45.1]}
19... Rxe8 {[%clk 0:02:00.3]} 20. Qxf6 {[%clk 0:01:35]} 20... Bxf6 {[%clk
0:01:59.4]} 21. Be3 {[%clk 0:01:29.3]} 21... a5 {[%clk 0:01:42.7]} 22. Kg2
{[%clk 0:01:17.5]} 22... Rb8 {[%clk 0:01:36.6]} 23. Bd5 {[%clk 0:01:12.8]} 23...
Rxb2 {[%clk 0:01:33.7]} 24. Rd1 {[%clk 0:01:08.3]} 24... Rxa2 {[%clk 0:01:20.7]}
25. c5 {[%clk 0:01:08.3]} 25... Rb2 {[%clk 0:01:19.4]} 26. cxd6 {[%clk
0:01:05.1]} 26... cxd6 {[%clk 0:01:19.7]} 27. Be4 {[%clk 0:00:58]} 27... Be5
{[%clk 0:01:04.5]} 28. h4 {[%clk 0:00:54.6]} 28... f6 {[%clk 0:01:01.8]} 29.
hxg5 {[%clk 0:00:53.4]} 29... hxg5 {[%clk 0:01:02.7]} 30. Bd5+ {[%clk
0:00:48.3]} 30... Kg7 {[%clk 0:01:01.9]} 31. Rc1 {[%clk 0:00:47.7]} 31... Kf8
{[%clk 0:00:39.9]} 32. Rc7 {[%clk 0:00:45.7]} 32... Ke8 {[%clk 0:00:40.2]} 33.
Ra7 {[%clk 0:00:44.9]} 33... a4 {[%clk 0:00:40.2]} 34. Be4 {[%clk 0:00:35.1]}
34... f5 {[%clk 0:00:34]} 35. Bf3 {[%clk 0:00:32.4]} 35... f4 {[%clk 0:00:34.2]}
36. gxf4 {[%clk 0:00:28.8]} 36... gxf4 {[%clk 0:00:34.5]} 37. Bh5+ {[%clk
0:00:28.1]} 37... Kd8 {[%clk 0:00:33.8]} 38. Bc1 {[%clk 0:00:25.4]} 38... Rxf2+
{[%clk 0:00:19.3]} 39. Kxf2 {[%clk 0:00:23.5]} 39... Bd4+ {[%clk 0:00:19.7]} 40.
Kf3 {[%clk 0:00:22.6]} 40... Bxa7 {[%clk 0:00:19.9]} 41. Kxf4 {[%clk 0:00:22.9]}
41... Bc5 {[%clk 0:00:20.2]} 42. Bf7 {[%clk 0:00:21.6]} 42... Kc7 {[%clk
0:00:20.3]} 43. Ke4 {[%clk 0:00:20.3]} 43... Bc6+ {[%clk 0:00:20.4]} 44. Kd3
{[%clk 0:00:19.4]} 44... Kb6 {[%clk 0:00:20.8]} 45. Kc3 {[%clk 0:00:17.8]} 45...
d5 {[%clk 0:00:19.6]} 46. Kb2 {[%clk 0:00:13.4]} 46... Kb5 {[%clk 0:00:18.5]}
47. Bd2 {[%clk 0:00:12.8]} 47... Kb6 {[%clk 0:00:15.4]} 48. Bc3 {[%clk
0:00:12.5]} 48... d4 {[%clk 0:00:15.6]} 49. Bxd4 {[%clk 0:00:11.2]} 49... Bxd4+
{[%clk 0:00:15.3]} 50. Ka3 {[%clk 0:00:11.8]} 50... Bc5+ {[%clk 0:00:15.6]} 51.
Ka2 {[%clk 0:00:11.7]} 51... Kb5 {[%clk 0:00:15.5]} 52. Bg8 {[%clk 0:00:11.1]}
52... Kb4 {[%clk 0:00:15.7]} 53. Bf7 {[%clk 0:00:11.1]} 53... Bb5 {[%clk
0:00:16.1]} 54. Bg8 {[%clk 0:00:12]} 54... Bc4+ {[%clk 0:00:15.6]} 0-1

[Event "*** Titled Tuesday Blitz"]
[Site "Chess.com"]
[Date "2020.12.29"]
[Round "3"]
[White "arctic_t00"]
[Black "DenLaz"]
[Result "1-0"]
[WhiteElo "2622"]
[BlackElo "2816"]
[TimeControl "180+1"]
[EndTime "10:29:17 PST"]
[Termination "arctic_t00 won by resignation"]

1. Nf3 {[%clk 0:03:00.9]} 1... d5 {[%clk 0:02:59.8]} 2. g3 {[%clk 0:03:01]} 2...
Nd7 {[%clk 0:02:59.5]} 3. d4 {[%clk 0:03:00.1]} 3... Nb6 {[%clk 0:02:57.9]} 4.
Bg2 {[%clk 0:03:00]} 4... Bf5 {[%clk 0:02:57.9]} 5. O-O {[%clk 0:02:56.9]} 5...
e6 {[%clk 0:02:56.7]} 6. Bg5 {[%clk 0:02:41.7]} 6... Be7 {[%clk 0:02:55.2]} 7.
Bxe7 {[%clk 0:02:38.6]} 7... Qxe7 {[%clk 0:02:54]} 8. Re1 {[%clk 0:02:38.3]}
8... Nf6 {[%clk 0:02:53]} 9. Nbd2 {[%clk 0:02:33.8]} 9... O-O {[%clk 0:02:46.9]}
10. Ne5 {[%clk 0:02:28.8]} 10... c5 {[%clk 0:02:43.3]} 11. c3 {[%clk 0:02:28.2]}
11... Rac8 {[%clk 0:02:36.8]} 12. Nb3 {[%clk 0:02:18.8]} 12... cxd4 {[%clk
0:02:30.4]} 13. Nxd4 {[%clk 0:02:18.2]} 13... Be4 {[%clk 0:02:30.5]} 14. a4
{[%clk 0:02:08.4]} 14... Nc4 {[%clk 0:02:27.3]} 15. Nxc4 {[%clk 0:02:01.9]}
15... Rxc4 {[%clk 0:02:28.2]} 16. Nf3 {[%clk 0:01:52.7]} 16... Rc7 {[%clk
0:02:15.1]} 17. a5 {[%clk 0:01:51.7]} 17... Rb8 {[%clk 0:02:12]} 18. Qd4 {[%clk
0:01:50]} 18... Qc5 {[%clk 0:02:10.2]} 19. e3 {[%clk 0:01:41.7]} 19... Ne8
{[%clk 0:02:02.6]} 20. Ne5 {[%clk 0:01:33]} 20... Qxd4 {[%clk 0:01:24.2]} 21.
exd4 {[%clk 0:01:30.9]} 21... Bxg2 {[%clk 0:01:24.6]} 22. Kxg2 {[%clk
0:01:30.8]} 22... Nd6 {[%clk 0:01:25.2]} 23. Re2 {[%clk 0:01:21.1]} 23... g6
{[%clk 0:01:17.7]} 24. g4 {[%clk 0:01:19.4]} 24... h6 {[%clk 0:01:12.1]} 25. f3
{[%clk 0:01:17.1]} 25... Kg7 {[%clk 0:01:12.4]} 26. Kg3 {[%clk 0:01:13.9]} 26...
Nc4 {[%clk 0:01:03.5]} 27. Nxc4 {[%clk 0:01:13.6]} 27... Rxc4 {[%clk 0:01:04.4]}
28. f4 {[%clk 0:01:08.1]} 28... Rbc8 {[%clk 0:01:02.4]} 29. f5 {[%clk
0:01:04.3]} 29... exf5 {[%clk 0:00:54.3]} 30. gxf5 {[%clk 0:01:05.2]} 30... g5
{[%clk 0:00:54.9]} 31. h4 {[%clk 0:01:04.9]} 31... Kf6 {[%clk 0:00:54.4]} 32.
Re5 {[%clk 0:01:00.5]} 32... Rd8 {[%clk 0:00:47.9]} 33. hxg5+ {[%clk 0:00:57.4]}
33... hxg5 {[%clk 0:00:48.8]} 34. Rh1 {[%clk 0:00:55.9]} 34... Rc7 {[%clk
0:00:44.3]} 35. Kg4 {[%clk 0:00:52.1]} 35... Kg7 {[%clk 0:00:44.6]} 36. Rh5
{[%clk 0:00:43.9]} 36... f6 {[%clk 0:00:44.6]} 37. Re3 {[%clk 0:00:40.3]} 37...
Rdd7 {[%clk 0:00:39.3]} 38. Reh3 {[%clk 0:00:39.4]} 38... Kf8 {[%clk 0:00:26.9]}
39. Rh8+ {[%clk 0:00:30.7]} 39... Ke7 {[%clk 0:00:27.1]} 40. Ra8 {[%clk
0:00:31.6]} 40... Kd6 {[%clk 0:00:22.4]} 41. Rh6 {[%clk 0:00:21.5]} 41... Rf7
{[%clk 0:00:22.3]} 42. Rxa7 {[%clk 0:00:20.5]} 42... Rce7 {[%clk 0:00:22.7]} 43.
a6 {[%clk 0:00:16.7]} 43... Kc6 {[%clk 0:00:17.6]} 44. axb7 {[%clk 0:00:16.1]}
44... Rxb7 {[%clk 0:00:17.8]} 45. Rxb7 {[%clk 0:00:16.3]} 45... Kxb7 {[%clk
0:00:18.7]} 46. Kh5 {[%clk 0:00:16.1]} 46... Rf8 {[%clk 0:00:17.5]} 47. Kg6
{[%clk 0:00:15.4]} 47... g4 {[%clk 0:00:05.3]} 48. Kg7 {[%clk 0:00:14.9]} 48...
Re8 {[%clk 0:00:05.5]} 49. Rxf6 {[%clk 0:00:13]} 49... Re2 {[%clk 0:00:05.3]}
50. Rg6 {[%clk 0:00:13]} 50... Rxb2 {[%clk 0:00:05.4]} 51. Rxg4 {[%clk
0:00:12.5]} 51... Kc6 {[%clk 0:00:02.4]} 52. f6 {[%clk 0:00:12.8]} 52... Rf2
{[%clk 0:00:03.1]} 53. f7 {[%clk 0:00:13.2]} 53... Kb5 {[%clk 0:00:03.8]} 54.
f8=Q {[%clk 0:00:13.1]} 54... Rxf8 {[%clk 0:00:04.7]} 55. Kxf8 {[%clk 0:00:14]}
55... Kc4 {[%clk 0:00:05.6]} 56. Rg3 {[%clk 0:00:14.4]} 1-0